{"text_format":"1","workbook":"xlsx","n_sheets":1,"sheets":["Angles3"],"not_rendered":{"charts":0,"images":0,"macros":1,"external_links":0,"defined_names":1,"comments":0,"pivot_tables":0},"unopened":[],"bounds":{"document_bytes":16777216,"sheet_cells":100000,"rows_first":2000,"rows_last":500,"rows_between":2000,"halvings":0,"cell_chars":16384,"cell_head_chars":4096},"cells_cut":0,"cells_raw":0,"read":"whole","date_system":"1900"}

{"sheet":"Angles3","index":0,"n_rows":55,"n_cols":52,"rows_kept":55,"cut":false,"hidden":false,"merged":[[1,1,5,42],[10,23,10,24],[20,23,20,24],[30,23,30,24],[11,23,11,24],[12,23,12,24],[13,23,13,24],[53,22,53,23],[20,21,20,22],[22,21,22,22],[34,6,34,7],[34,11,34,12],[39,9,39,10],[42,17,43,17],[42,18,43,18],[41,23,41,24],[42,23,42,24],[42,14,42,15],[39,23,39,24],[40,23,40,24],[14,6,14,7],[20,12,20,13],[22,23,22,24],[48,22,48,23],[49,22,49,23],[39,14,39,15],[50,22,50,23],[51,22,51,23],[52,22,52,23],[42,12,42,13]]}
[]
[null,"Level 3 Maths - Angles                                                                                                                                                                   Created by Mr.Lafferty@mathsrevision.com   "]
[]
[]
[]
[]
[]
[null,null,"Q1.    Calculate the missing angles shown below."]
[]
[]
[null,null,null,null,null,null,null,null,null,null,null,null,null,null,"co",null,null,null,null,null,null,"ao =",null,null,null,"o ",null,null,null,null,null,null,null,null,null,null,null,null,null,null,null,null,null,null,null,null,null,null,null,null,null,{"$f":"180-G15","v":120}]
[null,null,null,null,null,null,null,null,"a","o",null,null,null,"b","o",null,null,null,null,null,null,"bo =",null,null,null,"o ",null,null,null,null,null,null,null,null,null,null,null,null,null,null,null,null,null,null,null,null,null,null,null,null,null,{"$f":"G15","v":60}]
[null,null,null,null,null,null,null,null,null,null,null,null,null,null,null,null,null,null,null,null,null,"co =",null,null,null,"o ",null,null,null,null,null,null,null,null,null,null,null,null,null,null,null,null,null,null,null,null,null,null,null,null,null,{"$f":"AZ11","v":120}]
[null,null,null,null,null,null,null,null,null,null,null,null,null,null,null,null,null,null,null,null,null,"do =",null,null,null,"o ",null,null,null,null,null,null,null,null,null,null,null,null,null,null,null,null,null,null,null,null,null,null,null,null,null,{"$f":"AZ13","v":120}]
[null,null,null,null,null,null,{"$f":"ROUND(RAND()*(85-55)+55,0)","v":60},null,"o",null,null,null,"do",null,null,null,null,null,null," "]
[]
[]
[null,null,"Q2.    Calculate this missing angles shown below:"]
[]
[null,null,null,null,null,null,null,"y","o"]
[null,null,null,null,null,null,null,null,null,null,null,null,{"$f":"180-H24","v":115},null,"o",null,null,null,null,null,null,"xo =",null,null,null,"o ",null,null,null,null,null,null,null,null,null,null,null,null,null,null,null,null,null,null,null,null,null,null,null,null,null,{"$f":"M21","v":115}]
[]
[null,null,null,null,null,null,null,null,null,null,null,null,null,"x","o",null,null,null,null,null,null,"yo =",null,null,null,"o ",null,null,null,null,null,null,null,null,null,null,null,null,null,null,null,null,null,null,null,null,null,null,null,null,null,{"$f":"H24","v":65}]
[null,null,null,null,null,null,null,{"$f":"ROUND(RAND()*(85-55)+55,0)","v":65},"o"]
[]
[]
[]
[null,null,"Q3.    Calculate the missing angle shown below."]
[]
[null,null,null,null,null,null,null,null,null,null,null,null,null,null,null,"z","o"]
[null,null,null,null,null,null,null,null,null,null,null,null,null,null,null,null,null,null,null,null,null,"zo =",null,null,null,"o ",null,null,null,null,null,null,null,null,null,null,null,null,null,null,null,null,null,null,null,null,null,null,null,null,null,{"$f":"360-(L35+G35+F32)","v":16}]
[null,null,null,null,null,{"$f":"ROUND(RAND()*(60-50)+50,0)","v":59},"o"]
[]
[]
[null,null,null,null,null,null,{"$f":"ROUND(RAND()*(150-135)+135,0)","v":147},null,"o",null,null,{"$f":"G35-ROUND(RAND()*(10-5)+5,0)","v":138},null,"o"]
[]
[]
[null,null,"Q4.    Calculate the missing angles in the parallelogram shown below."]
[]
[null,null,null,null,null,null,null,null,"go",{"$f":"ROUND(RAND()*(35-20)+20,0)","v":20},null,"o",null,null,{"$f":"ROUND(RAND()*(85-75)+75,0)","v":83},null,"o",null,null,null,null,"eo =",null,null,null,"o ",null,null,null,null,null,null,null,null,null,null,null,null,null,null,null,null,null,null,null,null,null,null,null,null,null,{"$f":"180-(J40+O40)","v":77}]
[null,null,null,null,null,null,null,null,null,null,null,null,null,null,null,null,null,null,null,null,null,"fo =",null,null,null,"o ",null,null,null,null,null,null,null,null,null,null,null,null,null,null,null,null,null,null,null,null,null,null,null,null,null,{"$f":"J40","v":20}]
[null,null,null,null,null,null,null,null,null,null,null,null,null,null,null,null,null,null,null,null,null,"go =",null,null,null,"o ",null,null,null,null,null,null,null,null,null,null,null,null,null,null,null,null,null,null,null,null,null,null,null,null,null,{"$f":"AZ40","v":77}]
[null,null,null,null,null,null,null,"ho",null,null,null,null,"fo",null,"eo",null,null,null,null,null,null,"ho =",null,null,null,"o ",null,null,null,null,null,null,null,null,null,null,null,null,null,null,null,null,null,null,null,null,null,null,null,null,null,{"$f":"O40","v":83}]
[]
[]
[]
[]
[null,null,"Q5.  Calculate the missing angles in the kite shown below."]
[null,null,null,null,null,null,null,null,null,null,null,null,null,null,null,null,null,null,null,null,"ao =",null,null,null,"o ",null,null,null,null,null,null,null,null,null,null,null,null,null,null,null,null,null,null,null,null,null,null,null,null,null,null,{"$f":"180-(90+H51)","v":50}]
[null,null,null,null,null,null,null,null,null,"ao","bo",null,null,null,null,null,null,null,null,null,"bo =",null,null,null,"o ",null,null,null,null,null,null,null,null,null,null,null,null,null,null,null,null,null,null,null,null,null,null,null,null,null,null,{"$f":"AZ49","v":50}]
[null,null,null,null,null,null,null,{"$f":"ROUND(RAND()*(44-35)+35,0)","v":40},"o",null,null,"co",null,null,null,null,null,null,null,null,"co =",null,null,null,"o ",null,null,null,null,null,null,null,null,null,null,null,null,null,null,null,null,null,null,null,null,null,null,null,null,null,null,{"$f":"H51","v":40}]
[null,null,null,null,null,null,null,"do",null,null,null,{"$f":"ROUND(RAND()*(70-50)+50,0)","v":59},"o",null,null,null,null,null,null,null,"do =",null,null,null,"o ",null,null,null,null,null,null,null,null,null,null,null,null,null,null,null,null,null,null,null,null,null,null,null,null,null,null,{"$f":"L52","v":59}]
[null,null,null,null,null,null,null,null,null,null,null,null,null,null,null,null,null,null,null,null,"eo =",null,null,null,"o ",null,null,null,null,null,null,null,null,null,null,null,null,null,null,null,null,null,null,null,null,null,null,null,null,null,null,{"$f":"180-(90+AZ52)","v":31}]
[null,null,null,null,null,null,null,null,null,null,null,null,null,null,null,null,null,null,null,null,"fo =",null,null,null,"o ",null,null,null,null,null,null,null,null,null,null,null,null,null,null,null,null,null,null,null,null,null,null,null,null,null,null,{"$f":"AZ53","v":31}]
[null,null,null,null,null,null,null,null,null,"eo","fo",null,null,null,"ao"]